Cogmind - Beta 9.1 --- EXPLORER MODE // 2019.10.31 @ 10:45:34 // Halloween2019/Abominations Player: Arctrect Result: Core destroyed Performance ------------- Evolutions (0) 0 Regions Visited (1) 200 Robots Destroyed (7) 35 Value Destroyed (137) 137 Prototype IDs (0) 0 Alien Tech Used (0) 0 Bonus (0) 0 TOTAL SCORE: 372 Bonus ------- None Cogmind --------- Core Integrity 0/250 Matter 287/300 Energy 100/100 System Corruption 0% Temperature Cool (29) Location -10/Materials Parts ------- Power (1) Propulsion (2) Utility (3) Medium Storage Unit Targeting Computer Weapon (2) Plasma Cutter Inventory (8) Peak State ------------ Power Light Ion Engine Propulsion Light Treads Light Treads Utility Medium Storage Unit Structural Scanner Targeting Computer Weapon Small Laser Assault Rifle Inventory Light Assault Rifle [Rating: 8] Favorites ----------- Power Light Ion Engine Engine Light Ion Engine Propulsion Light Treads Treads Light Treads Utility Targeting Computer Device Structural Scanner Storage Medium Storage Unit Processor Targeting Computer Weapon Small Laser Energy Gun Small Laser Ballistic Gun Assault Rifle Special Weapon Plasma Cutter Build | -11 -10 ------- Run | Scr Mat Slots Evolved 1 | . 1 Power . | . . Propulsion . | . . Utility 1 | . 1 Weapon . | . . Parts Attached 10 | 7 3 Power 1 | 1 . Engine 1 | 1 . Core . | . . Reactor . | . . Propulsion 2 | 2 . Treads 2 | 2 . Leg . | . . Wheel . | . . Hover . | . . Flight . | . . Utility 3 | 2 1 Device 1 | . 1 Storage 1 | 1 . Processor 1 | 1 . Hackware . | . . Protection . | . . Artifact . | . . Weapon 4 | 2 2 Energy Gun 1 | 1 . Energy Cannon . | . . Ballistic Gun 2 | 1 1 Ballistic Cannon . | . . Launcher . | . . Special Weapon 1 | . 1 Impact Weapon . | . . Slashing Weapon . | . . Piercing Weapon . | . . Special Melee Weapon . | . . Unidentified Prototypes . | . . Parts Lost 5 | . 5 Power 1 | . 1 Propulsion 1 | . 1 Utility 1 | . 1 Weapon 2 | . 2 Highest Loss Streak 5 | . 5 Average Slot Usage (%) 85 | . 85 Engine 10 | . 10 Treads 20 | . 20 Device 7 | . 7 Storage 12 | . 12 Processor 12 | . 12 Energy Gun 9 | . 9 Ballistic Gun 10 | . 10 Naked Turns . | . . Heaviest Build 15 | 14 15 Greatest Support 40 | 40 40 Greatest Overweight (x) 4 | 4 3 Average Overweight (x) . | . . Largest Inventory Capacity 8 | 8 8 Average Capacity 7 | 7 8 Most Carried 2 | 1 2 Average Carried . | . . Final Capacity 8 | 8 8 Final Carried 1 | 1 . Class Distribution -------------------- 100% | Mutant Dominant Class ---------------- Mutant | -10/Materials Resources | -11 -10 ----------- Run | Scr Mat Matter Collected 304 | 273 31 Remotely . | . . Salvage Created 213 | 16 197 Parts 20 | 4 16 Haulers Intercepted . | . . Recyclers Shooed . | . . Parts Field Recycled . | . . Retrieved Matter . | . . Parts Self-Destructed . | . . Prevented . | . . Kills | -11 -10 ------- Run | Scr Mat Combat Hostiles Destroyed 3 | . 3 Guns 3 | . 3 Classes Destroyed 4 | 1 3 Builder 1 | . 1 Tunneler 2 | 1 1 Watcher 1 | . 1 Grunt 3 | . 3 Best Kill Streak 3 | 1 3 Combat Bots Only 3 | . 3 Max Kills in Single Turn 1 | 1 1 Gunslinging . | . . Exploded . | . . Melee . | . . Uniques/NPCs Destroyed . | . . Combat | -11 -10 -------- Run | Scr Mat Damage Taken 512 | . 512 Core 251 | . 251 Absorbed by Shields . | . . Core Remaining (%) 100 | 100 . Volleys Fired 34 | 1 33 Largest 2 | 2 2 Hottest 60 | 60 60 Shots Fired 41 | 2 39 Gun 41 | 2 39 Cannon . | . . Launcher . | . . Special . | . . Kinetic 29 | 1 28 Thermal 12 | 1 11 Explosive . | . . Electromagnetic . | . . Robot Hit Streak 23 | 1 23 Robot Miss Streak 1 | . 1 Penetration Max . | . . Secondary Targets . | . . Shots Hit Robots 32 | 1 31 Core Hits 12 | 1 11 Critical Hits 1 | . 1 Critical Kills . | . . Critical Parts Destroyed 1 | . 1 Melee Attacks . | . . Impact . | . . Slashing . | . . Piercing . | . . Sneak Attacks . | . . Combat Hostiles . | . . Follow-up Attacks . | . . Damage Inflicted 293 | 10 283 Guns 288 | 10 278 Cannons . | . . Explosions . | . . Melee . | . . Ramming 5 | . 5 Kinetic 193 | . 193 Thermal 95 | 10 85 Explosive . | . . Electromagnetic . | . . Impact . | . . Slashing . | . . Piercing . | . . Highest Corruption . | . . Average Corruption . | . . Corruption Purged . | . . Overload Shots . | . . Overflow Damage . | . . Projectiles . | . . Explosions . | . . Melee . | . . Knockbacks . | . . Impact . | . . Kinetic . | . . Secondary . | . . Self-Inflicted Damage 2 | . 2 Shots . | . . Rammed 3 | . 3 Targets Rammed 3 | . 3 Kicked . | . . Crushed . | . . Highest Temperature 906 | . 906 Average Temperature 359 | . 359 Received Heat Transfer 258 | . 258 Effects 23 | . 23 Shutdowns 2 | . 2 Energy Bleed 1 | . 1 Interference 5 | . 5 Matter Decay 2 | . 2 Short Circuit 1 | . 1 Damage (minor) 5 | . 5 Damage (major) 5 | . 5 Damage (core) 2 | . 2 Siege Activations . | . . Robots Corrupted . | . . Combat Hostiles . | . . Parts Fried . | . . Impact Corruptions . | . . Robots Melted . | . . Combat Hostiles . | . . Parts Melted 2 | . 2 Heat Transferred 225 | 25 200 Parts Sabotaged . | . . Parts Stolen . | . . Parts Stripped . | . . Power Chain Reactions . | . . Missiles Intercepted . | . . Alert | -11 -10 ------- Run | Scr Mat Peak Influence 49 | 5 49 Average Influence 6 | 2 7 Maximum Alert Level . | . . Low Security (%) 100 | . . Level 1 . | . . Level 2 . | . . Level 3 . | . . Level 4 . | . . Level 5 . | . . High Security . | . . Max Security . | . . Squads Dispatched 1 | . 1 Investigation . | . . Extermination . | . . Reinforcement . | . . Assault 1 | . 1 Garrison . | . . Intercept . | . . Construction Impeded . | . . Haulers Reinforced . | . . Stealth | -11 -10 --------- Run | Scr Mat Distress Signals 1 | . 1 Communications Jammed . | . . Distress Signals . | . . Times Spotted 9 | . 9 Peak Tracking Total 4 | . 4 Tactical Retreats 2 | . 2 Traps | -11 -10 ------- Run | Scr Mat Traps Triggered . | . . Indirectly . | . . Trap Hack Attempts . | . . Triggered . | . . Disarmed . | . . Reprogrammed . | . . Reused . | . . Traps Extracted . | . . Installed . | . . Triggered . | . . Machines | -11 -10 ---------- Run | Scr Mat Machines Disabled . | . . Max in Single Turn . | . . Machines Sabotaged . | . . Garrisons Compromised . | . . Overloaded Fab Kills . | . . Fab Network Shutdowns . | . . Hacking | -11 -10 --------- Run | Scr Mat Machines Accessed . | . . Terminals . | . . Fabricators . | . . Repair Stations . | . . Recycling Units . | . . Scanalyzers . | . . Garrison Access . | . . Total Hacks . | . . Successful . | . . Failed . | . . Catastrophic . | . . Database Lockouts . | . . Manual . | . . Terminals . | . . Fabricators . | . . Repair Stations . | . . Recycling Units . | . . Scanalyzers . | . . Garrison Access . | . . Terminal Hacks . | . . Fabricator Hacks . | . . Repair Station Hacks . | . . Recycling Unit Hacks . | . . Scanalyzer . | . . Garrison Access Hacks . | . . Unauthorized Hacks . | . . Terminals . | . . Fabricators . | . . Repair Stations . | . . Recycling Units . | . . Scanalyzers . | . . Garrison Access . | . . Data Cores Recovered . | . . Used . | . . Hacking Detections . | . . Full Trace Events . | . . Feedback Events . | . . Feedback Blocked . | . . Robot Schematics Acquired . | . . Robots Built . | . . Matter . | . . Time . | . . Total Robot Build Rating . | . . Part Schematics Acquired . | . . Parts Built . | . . Matter . | . . Time . | . . Total Part Build Rating . | . . Parts Repaired . | . . Time . | . . Parts Recycled . | . . Recycled Matter . | . . Retrieved Matter . | . . Retrieved Components . | . . Parts Scanalyzed . | . . Part Schematics Acquired . | . . Parts Damaged . | . . Bothacking | -11 -10 ------------ Run | Scr Mat Used RIF Installer . | . . Robots Hacked . | . . Non-combat . | . . Combat . | . . Robot Hacks Applied . | . . Relay Couplers Released . | . . Robots Rewired . | . . Allies Hacked . | . . Hacks Repelled . | . . Allies | -11 -10 -------- Run | Scr Mat Total Allies . | . . Largest Group . | . . Highest-Rated Group . | . . Highest-Rated Ally . | . . Total Orders . | . . Ally Attacks . | . . Total Damage . | . . Kills . | . . Allies Corrupted . | . . Allies Melted . | . . Intel | -11 -10 ------- Run | Scr Mat Robot Analysis Total . | . . Derelict Logs Recovered . | . . Drone Launches . | . . Drone Recoveries . | . . Exploration | -11 -10 ------------- Run | Scr Mat Turns Passed 582 | 123 459 Spaces Moved 290 | 75 215 Core 42 | 26 16 Treads 248 | 49 199 Legs . | . . Wheels . | . . Hover . | . . Flight . | . . Fastest Speed 50 | 50 150 Average Speed 158 | 145 162 Slowest Speed 250 | 250 200 Overloaded Moves . | . . Propulsion Burnouts . | . . Robots Hopped . | . . Cave-ins Triggered . | . . Exploration Rate (%) 16 | 5 27 Regions Visited 1 Branch Regions . Pre-discovered Areas . | . . Known Exits Taken 1 | 1 . Unknown Exits Taken . | . . Scrap Searched . | . . Spaces Dug . | . . Terrain Destroyed . | . . Melee . | . . Projectile . | . . AOE . | . . Actions | -11 -10 --------- Run | Scr Mat Total 372 | 84 288 Wait 33 | . 33 Move 289 | 74 215 Hop . | . . Pick Up 4 | 2 2 Fast Attach 6 | 6 . Attach 4 | 1 3 Detach . | . . Swap . | . . Drop . | . . Fire 34 | 1 33 Melee . | . . Ram 2 | . 2 Kick . | . . Crush . | . . Escape Stasis . | . . Rewire . | . . Trap . | . . Miscellaneous . | . . Route ------- -11/Scrapyard -10/Materials (discovered 1 exit: *Mat) History --------- Turn | Location | Event 8 | -11/Scrapyard | Identified exit to Materials 8 | -11/Scrapyard | Discovered exit to Materials (range 16) 124 | -11/Scrapyard | Entered Materials 124 | -10/Materials | Evolved 1 slot: Utility x1 216 | -10/Materials | Identified exit to Mines 216 | -10/Materials | Discovered exit to Mines (range 12) 303 | -10/Materials | Build established: Mutant 481 | -10/Materials | Identified exit to Materials 481 | -10/Materials | Discovered exit to Materials (range 14) 544 | -10/Materials | Core integrity fell below 50% 559 | -10/Materials | Core integrity fell below 20% 583 | -10/Materials | Core destroyed Last Messages --------------- 00560_ Lesser Abomination absorbs Sml. Matter Pod. 00561_ Overheating: Structural Scanner damaged (-1). 00562_ Overheating: Targeting Computer damaged (-3). 00562_ Lesser Abomination absorbs Wheel. 00565_ Lesser Abomination spits out Wheel. 00565_ Lesser Abomination absorbs Wheel. 00573_ Structural Scanner destroyed. 00578_ Lesser Abomination absorbs Visual Processing Unit. 00578_ Lesser Abomination absorbs Hpw. Tractor Beam. 00578_ Acquired Plasma Cutter. 00579_ Lesser Abomination absorbs Visual Processing Unit. 00580_ Lesser Abomination absorbs Hpw. Tractor Beam. 00580_ Slammed into Lesser Abomination. 00580_ Destabilizing: System interference. 00580_ Plasma Cutter temporarily disabled. 00580_ Lgt. Assault Rifle temporarily disabled. 00580_ Lgt. Assault Rifle destroyed. 00582_ Lesser Abomination absorbs Visual Processing Unit. 00582_ Slammed into Lesser Abomination. 00583_ Destabilizing: Core damaged (-5). Map ----- +----------------------------------------------------+ | | | | | | | | | | | | | | | | | | | ?????????????????????????????????????????????????? | | ?????????????????????????????????????????????????? | | ?????????????????????????????????????????????????? | | ?????????????????????????????????????????????????? | | ?????????????????????????????????????????????????? | | ????????????????????????????????? ?????????????? | | ????????????????????????????????? < ?????????????? | | ???????#####????????????????????? #????????????? | | ??????##"""##???????????????????+ ????????????? | | ?######"!!!"##??????????????????# ????????????? | | ?# ##"" ""#??????????????????# #????????????? | | ?# ## #??????????????????? ?????????????? | | ?# ## > #???????########???? ?????????????? | | ?#==## #???????# ||! #???? ?????????????? | | ?#* #? #???????#!!| #???? ?????????????? | | ?##%#?? #?######## A #???? ????? ?????? | | ###+#### #??# T ####@###???? ????" ?????? | | !| # #??# #??#A#??????# #??? % ????? | | """ # #??# """ #??# #??????# #? ????? | | """ + #??# """ #??# ########+# ????? | | """ # #??# """=#??# # # "#???? | | # #??# *!%!#??# # %%"" # #????? | | ! """ # #######+###### # "T # #????? | | """ # # % " # "#???? | | """ # =+== [%[ # "#???? | | # #! "" %# #????? | | ################ """ # "" # #??? | | ??????########?# """ # "" " ???? | | ??????#!![[[[#?# """ # ???? | | ??????#!![[[[#?# ########" ????? | | ??????# #?# #??????? % = ????? | | ??????### ### """ ###?????"" ???????? | | ????????# """ #?????"" "??????? | | ????????# """ +??????# ? ????????? | | ????????# #???????"??"?????????? | | ????????####+### #????????????????????? | | ????????# ## #########????????????????????? | | ????????# """" ## #????????????????????????????? | | ????????# """" ## #????????????????????????????? | | ????????# """" ## #????????????????????????????? | | ????????# ## #????????????????????????????? | +----------------------------------------------------+ Best States ------------- Heat Dissipation 25 Energy Generation 10 Energy Capacity 125 Matter Stores 300 Matter Capacity 300 Sight Range 16 Terrain Scan Density 10 Resistance: KI 35 Resistance: TH 35 Resistance: EX 35 Resistance: EM 35 Resistance: I 35 Resistance: S 35 Resistance: P 35 Evasion (%) 50 Targeting Accuracy 5 Recoil Reduction 2 Item Schematics ----------------- None Robot Schematics ------------------ None Fabricated ------------ Nothing Alien Tech Used ----------------- None Achievements -------------- None Challenges ------------ None Game ------ Seed ChipReclamationInitializer Manual? 0 Play Time 00:08:38 Cumulative 19.0 hours Start 2019.10.31 @ 10:37:11 End 2019.10.31 @ 10:45:34 Sessions 1 Manual Loads 0 Difficulty Explorer Special Mode Halloween2019/Abominations Game No. 32 Rogue 32 Adventurer 0 Explorer 1 Win Type - Total 0 Types 0/0/0/0/0/0/0 Lore% 16 Gallery% 15 Achievement% 12 Wizard Run 0 Options --------- ASCII 0 Keyboard 1 Movement Numpad Keybinds 0 Fullscreen 1 Font 18/SmallcapsGlow Map View 76x50 Tactical HUD 1 Map Filters NONE Filters NONE Steam 1 RUN: 60ff73fa-f444-4078-bc09-348684830d79